fUST/lending_fUST_20250902
["ID","MTS","AMOUNT","RATE_DAILY","PERIOD"]
[382829363,1756746648893,-393.29378909,0.00013698,2]
[382829365,1756746648903,-480.0,0.00013698,2]
[382829367,1756746648913,-805.2,0.00013698,2]
[382829368,1756746648927,-484.48,0.00013698,2]
[382829370,1756746648936,-480.0,0.00013698,2]
[382829372,1756746648947,-562.38,0.00013698,2]
[382829374,1756746648957,-480.0,0.00013698,2]
[382829376,1756746648966,-480.0,0.00013698,2]
[382829378,1756746648976,-480.0,0.00013698,2]
[382829380,1756746648987,-480.49381234,0.00013698,2]
[382829382,1756746648998,-205.50161992,0.00013698,2]
[382829384,1756746649008,-480.0,0.00013698,2]
[382829386,1756746649019,-480.0,0.00013698,2]
[382829389,1756746649029,-480.0,0.00013698,2]
[382829391,1756746649040,-509.11,0.00013698,2]
[382829393,1756746649050,-480.0,0.00013698,2]
[382829395,1756746649059,-480.0,0.00013698,2]
[382829397,1756746649069,-480.0,0.00013698,2]
[382829398,1756746649079,-480.0,0.00013698,2]
[382829400,1756746649089,-230.21652934,0.00013698,2]
[382829402,1756746649098,-480.0,0.00013698,2]
[382829405,1756746649108,-480.0,0.00013698,2]
[382829406,1756746649118,-480.0,0.00013698,2]
[382829408,1756746649128,-565.64,0.00013698,2]
[382829410,1756746649138,-2042.5,0.00013698,2]
[382829412,1756746649148,-480.0,0.00013698,2]
[382829414,1756746649158,-480.0,0.00013698,2]
[382829416,1756746649167,-480.0,0.00013698,2]
[382829418,1756746649178,-480.0,0.00013698,2]
[382829420,1756746649187,-480.0,0.00013698,2]
[382829439,1756746649341,-480.0,0.00013698,2]
[382829442,1756746649383,-480.0,0.00013698,2]
[382829444,1756746649392,-339.70920272,0.00013698,2]
[382829446,1756746649402,-540.12,0.00013698,2]
[382829448,1756746649412,-480.0,0.00013698,2]
[382829450,1756746649421,-482.99402534,0.00013698,2]
[382829452,1756746649431,-480.0,0.00013698,2]
[382829454,1756746649442,-480.96037101,0.00013698,2]
[382829456,1756746649451,-480.0,0.00013698,2]
[382829458,1756746649460,-480.0,0.00013698,2]
[382829460,1756746649470,-480.0,0.00013698,2]
[382829462,1756746649479,-480.0,0.00013698,2]
[382829463,1756746649490,-480.0,0.00013698,2]
[382829465,1756746649499,-480.95244351,0.00013698,2]
[382829467,1756746649508,-480.0,0.00013698,2]
[382829469,1756746649518,-480.0,0.00013698,2]
[382829471,1756746649527,-525.97,0.00013698,2]
[382829473,1756746649537,-480.0,0.00013698,2]
[382829475,1756746649546,-480.0,0.00013698,2]
[382829477,1756746649555,-5245.65,0.00013698,2]
[382829479,1756746649564,-480.0,0.00013698,2]
[382829481,1756746649574,-480.0,0.00013698,2]
[382829483,1756746649583,-480.0,0.00013698,2]
[382829485,1756746649592,-660.89,0.00013698,2]
[382829487,1756746649602,-480.0,0.00013698,2]
[382829489,1756746649611,-480.0,0.00013698,2]
[382829491,1756746649621,-480.0,0.00013698,2]
[382829493,1756746649631,-480.0,0.00013698,2]
[382829495,1756746649642,-480.0,0.00013698,2]
[382829497,1756746649651,-480.0,0.00013698,2]
[382829499,1756746649661,-480.0,0.00013698,2]
[382829501,1756746649670,-480.0,0.00013698,2]
[382829503,1756746649679,-664.17,0.00013698,2]
[382829505,1756746649688,-480.0,0.00013698,2]
[382829507,1756746649698,-679.03,0.00013698,2]
[382829509,1756746649707,-1452.22,0.00013698,2]
[382829511,1756746649716,-1495.45,0.00013698,2]
[382829513,1756746649725,-480.0,0.00013698,2]
[382829515,1756746649738,-480.0,0.00013698,2]
[382829517,1756746649747,-480.0,0.00013698,2]
[382829519,1756746649757,-482.15440993,0.00013698,2]
[382829521,1756746649767,-598.83,0.00013698,2]
[382829523,1756746649777,-480.0,0.00013698,2]
[382829525,1756746649786,-480.0,0.00013698,2]
[382829527,1756746649795,-480.0,0.00013698,2]
[382829529,1756746649805,-596.14,0.00013698,2]
[382829531,1756746649815,-480.0,0.00013698,2]
[382829533,1756746649824,-480.0,0.00013698,2]
[382829535,1756746649833,-579.37,0.00013698,2]
[382829537,1756746649843,-480.0,0.00013698,2]
[382829539,1756746649852,-1201.83,0.00013698,2]
[382829541,1756746649861,-253.63132907,0.00013698,2]
[382829543,1756746649870,-480.0,0.00013698,2]
[382829545,1756746649879,-480.0,0.00013698,2]
[382829547,1756746649889,-480.0,0.00013698,2]
[382829549,1756746649898,-480.0,0.00013698,2]
[382829551,1756746649907,-480.0,0.00013698,2]
[382829553,1756746649920,-480.0,0.00013698,2]
[382829555,1756746649929,-480.0,0.00013698,2]
[382829557,1756746649939,-3403.03,0.00013698,2]
[382829559,1756746649950,-480.0,0.00013698,2]
[382829561,1756746649959,-3000.48,0.00013698,2]
[382829563,1756746649969,-191.28855677,0.00013698,2]
[382829565,1756746649979,-480.0,0.00013698,2]
[382829566,1756746649989,-498.68,0.00013698,2]
[382829569,1756746650002,-480.0,0.00013698,2]
[382829570,1756746650012,-480.0,0.00013698,2]
[382829572,1756746650021,-480.0,0.00013698,2]
[382829574,1756746650031,-480.0,0.00013698,2]
[382829576,1756746650040,-201.0,0.00013698,2]
[382829578,1756746650050,-480.0,0.00013698,2]
[382829580,1756746650059,-480.0,0.00013698,2]
[382829582,1756746650068,-480.0,0.00013698,2]
[382829584,1756746650078,-719.07,0.00013698,2]
[382829586,1756746650087,-500.0,0.00013698,2]
[382829588,1756746650096,-480.0,0.00013698,2]
[382829591,1756746650107,-480.0,0.00013698,2]
[382829593,1756746650117,-480.0,0.00013698,2]
[382829594,1756746650126,-480.0,0.00013698,2]
[382829596,1756746650135,-480.0,0.00013698,2]
[382829598,1756746650144,-1184.57,0.00013698,2]
[382829600,1756746650153,-480.0,0.00013698,2]
[382829602,1756746650163,-480.0,0.00013698,2]
[382829604,1756746650172,-486.9,0.00013698,2]
[382829606,1756746650181,-480.0,0.00013698,2]
[382829608,1756746650190,-480.0,0.00013698,2]
[382829610,1756746650200,-546.82993872,0.00013698,2]
[382829612,1756746650209,-480.0,0.00013698,2]
[382829614,1756746650218,-513.99,0.00013698,2]
[382829616,1756746650228,-480.0,0.00013698,2]
[382829618,1756746650237,-483.83,0.00013698,2]
[382829620,1756746650246,-594.45,0.00013698,2]
[382829622,1756746650256,-480.0,0.00013698,2]
[382829624,1756746650265,-480.0,0.00013698,2]
[382829626,1756746650275,-485.12393942,0.00013698,2]
[382829628,1756746650284,-480.0,0.00013698,2]
[382829630,1756746650293,-480.0,0.00013698,2]
[382829632,1756746650302,-480.0,0.00013698,2]
[382829634,1756746650311,-480.0,0.00013698,2]
[382829636,1756746650321,-480.0,0.00013698,2]
[382829638,1756746650330,-480.0,0.00013698,2]
[382829640,1756746650340,-480.0,0.00013698,2]
[382829642,1756746650350,-170.875051,0.00013698,2]
[382829644,1756746650361,-480.0,0.00013698,2]
[382829647,1756746650371,-480.0,0.00013698,2]
[382829649,1756746650380,-480.0,0.00013698,2]
[382829650,1756746650389,-480.0,0.00013698,2]
[382829652,1756746650398,-480.0,0.00013698,2]
[382829654,1756746650408,-566.34,0.00013698,2]
[382829656,1756746650417,-1188.72,0.00013698,2]
[382829659,1756746650428,-480.0,0.00013698,2]
[382829661,1756746650437,-480.0,0.00013698,2]
[382829663,1756746650448,-480.0,0.00013698,2]
[382829665,1756746650457,-480.0,0.00013698,2]
[382829667,1756746650466,-480.0,0.00013698,2]
[382829669,1756746650476,-615.33,0.00013698,2]
[382829671,1756746650485,-484.46,0.00013698,2]
[382829673,1756746650494,-481.87,0.00013698,2]
[382829674,1756746650503,-480.0,0.00013698,2]
[382829676,1756746650512,-480.0,0.00013698,2]
[382829678,1756746650521,-983.25,0.00013698,2]
[382829680,1756746650531,-480.0,0.00013698,2]
[382829682,1756746650541,-480.0,0.00013698,2]
[382829684,1756746650550,-580.61,0.00013698,2]
[382829686,1756746650559,-663.8,0.00013698,2]
[382829688,1756746650569,-480.0,0.00013698,2]
[382829691,1756746650579,-764.03,0.00013698,2]
[382829693,1756746650589,-480.0,0.00013698,2]
[382829695,1756746650598,-480.0,0.00013698,2]
[382829697,1756746650607,-498.63,0.00013698,2]
[382829699,1756746650617,-485.66781508,0.00013698,2]
[382829700,1756746650628,-574.63,0.00013698,2]
[382829702,1756746650637,-480.0,0.00013698,2]
[382829704,1756746650646,-480.0,0.00013698,2]
[382829706,1756746650655,-480.0,0.00013698,2]
[382829708,1756746650664,-480.0,0.00013698,2]
[382829710,1756746650674,-480.0,0.00013698,2]
[382829712,1756746650683,-480.0,0.00013698,2]
[382829714,1756746650694,-2017.79,0.00013698,2]
[382829716,1756746650704,-480.0,0.00013698,2]
[382829718,1756746650713,-1455.0,0.00013698,2]
[382829720,1756746650722,-720.57,0.00013698,2]
[382829722,1756746650732,-613.25,0.00013698,2]
[382829724,1756746650741,-480.0,0.00013698,2]
[382829726,1756746650750,-156.58006877,0.00013698,2]
[382829728,1756746650759,-480.0,0.00013698,2]
[382829730,1756746650769,-669.21,0.00013698,2]
[382829732,1756746650778,-480.0,0.00013698,2]
[382829734,1756746650787,-480.0,0.00013698,2]
[382829736,1756746650796,-415.43230139,0.00013698,2]
[382829738,1756746650806,-480.0,0.00013698,2]
[382829740,1756746650815,-508.43,0.00013698,2]
[382829742,1756746650824,-480.0,0.00013698,2]
[382829744,1756746650834,-480.0,0.00013698,2]
[382829746,1756746650843,-480.0,0.00013698,2]
[382829748,1756746650852,-480.0,0.00013698,2]
[382829750,1756746650861,-480.0,0.00013698,2]
[382829751,1756746650870,-480.0,0.00013698,2]
[382829752,1756746650880,-480.0,0.00013698,2]
[382829753,1756746650889,-480.0,0.00013698,2]
[382829754,1756746650897,-480.0,0.00013698,2]
[382829755,1756746650906,-480.0,0.00013698,2]
[382829756,1756746650916,-480.0,0.00013698,2]
[382829757,1756746650928,-480.0,0.00013698,2]
[382829758,1756746650937,-482.14,0.00013698,2]
[382829759,1756746650948,-480.0,0.00013698,2]
[382829760,1756746650956,-480.0,0.00013698,2]
[382829761,1756746650967,-2331.25,0.00013698,2]
[382829762,1756746650976,-629.8,0.00013698,2]
[382829763,1756746650985,-480.0,0.00013698,2]
[382829764,1756746650993,-480.0,0.00013698,2]
[382829765,1756746651005,-480.0,0.00013698,2]
[382829766,1756746651015,-480.0,0.00013698,2]
[382829767,1756746651023,-480.0,0.00013698,2]
[382829768,1756746651032,-480.0,0.00013698,2]
[382829769,1756746651041,-480.0,0.00013698,2]
[382829770,1756746651050,-504.29,0.00013698,2]
[382829771,1756746651059,-480.0,0.00013698,2]
[382829772,1756746651068,-480.0,0.00013698,2]
[382829773,1756746651077,-694.81,0.00013698,2]
[382829774,1756746651086,-480.0,0.00013698,2]
[382829775,1756746651095,-1614.23,0.00013698,2]
[382829776,1756746651104,-480.0,0.00013698,2]
[382829777,1756746651113,-276.52012059,0.00013698,2]
[382829778,1756746651122,-480.0,0.00013698,2]
[382829779,1756746651131,-480.0,0.00013698,2]
[382829780,1756746651140,-1651.76,0.00013698,2]
[382829781,1756746651149,-480.0,0.00013698,2]
[382829782,1756746651158,-480.0,0.00013698,2]
[382829783,1756746651167,-480.0,0.00013698,2]
[382829784,1756746651176,-585.39,0.00013698,2]
[382829785,1756746651187,-480.30718693,0.00013698,2]
[382829786,1756746651198,-480.0,0.00013698,2]
[382829787,1756746651206,-480.0,0.00013698,2]
[382829788,1756746651215,-520.87,0.00013698,2]
[382829790,1756746651224,-480.0,0.00013698,2]
[382829791,1756746651233,-480.0,0.00013698,2]
[382829792,1756746651242,-716.57,0.00013698,2]
[382829793,1756746651251,-480.0,0.00013698,2]
[382829794,1756746651261,-480.0,0.00013698,2]
[382829795,1756746651270,-551.9,0.00013698,2]
[382829796,1756746651280,-485.65,0.00013698,2]
[382829798,1756746651289,-483.53022449,0.00013698,2]
[382829800,1756746651299,-500.0,0.00013698,2]
[382829802,1756746651308,-736.519222,0.00013699,2]
[382829804,1756746651317,-151.0,0.00013699,2]
[382829806,1756746651327,-151.0,0.00013699,2]
[382829808,1756746651336,-1459.933467,0.00013699,2]
[382829810,1756746651345,-151.0,0.00013699,2]
[382829812,1756746651355,-151.0,0.00013699,2]
[382829814,1756746651364,-151.0,0.00013699,2]
[382829816,1756746651373,-259.25677,0.00013699,2]
[382829818,1756746651383,-151.0,0.00013699,2]
[382829820,1756746651392,-179.072662,0.00013699,2]
[382829822,1756746651401,-179.072662,0.00013699,2]
[382829824,1756746651411,-179.072662,0.00013699,2]
[382829826,1756746651420,-179.072662,0.00013699,2]
[382829828,1756746651430,-151.0,0.00013699,2]
[382829830,1756746651439,-151.872814,0.00013699,2]
[382829832,1756746651449,-151.0,0.00013699,2]
[382829834,1756746651458,-151.0,0.00013699,2]
[382829835,1756746651467,-151.0,0.00013699,2]
[382829837,1756746651476,-151.0,0.00013699,2]
[382829839,1756746651486,-151.0,0.00013699,2]
[382829841,1756746651495,-365.813345,0.00013699,2]
[382829843,1756746651505,-151.0,0.00013699,2]
[382829845,1756746651514,-151.0,0.00013699,2]
[382829847,1756746651524,-151.0,0.00013699,2]
[382829849,1756746651533,-365.813345,0.00013699,2]
[382829851,1756746651543,-151.0,0.00013699,2]
[382829853,1756746651552,-151.0,0.00013699,2]
[382829855,1756746651561,-365.813345,0.00013699,2]
[382829857,1756746651571,-151.0,0.00013699,2]
[382829858,1756746651580,-365.813345,0.00013699,2]
[382829860,1756746651590,-209.40437684,0.00013735,2]
[382829862,1756746651599,-2524.82941417,0.00013735,2]
[382829864,1756746651608,-217.44302069,0.00013762,2]
[382829866,1756746651617,-160.0,0.00013762,2]
[382829868,1756746651626,-160.0,0.00013762,2]
[382829870,1756746651635,-417.15472785,0.00013762,2]
[382829872,1756746651644,-232.83393981,0.00013762,2]
[382829874,1756746651653,-160.0,0.00013762,2]
[382829876,1756746651662,-160.0,0.00013762,2]
[382829877,1756746651671,-160.0,0.00013762,2]
[382829879,1756746651680,-160.0,0.00013762,2]
[382829881,1756746651690,-2089.09736586,0.0001379,2]
[382829883,1756746651699,-151.0,0.000138,2]
[382829885,1756746651708,-165.97,0.00013864,2]
[382829887,1756746651718,-165.97,0.00013864,2]
[382829889,1756746651727,-165.97,0.00013864,2]
[382829891,1756746651737,-165.97,0.00013864,2]
[382829893,1756746651746,-165.97,0.00013864,2]
[382829895,1756746651755,-165.97,0.00013864,2]
[382829896,1756746651765,-165.97,0.00013864,2]
[382829898,1756746651774,-153.8,0.00013864,2]
[382829900,1756746651783,-1000.0,0.00013872,2]
[382829902,1756746651792,-151.0,0.000139,2]
[382829904,1756746651801,-166.064561,0.00013941,2]
[382829906,1756746651810,-151.0,0.00013941,2]
[382829908,1756746651822,-151.0,0.00013941,2]
[382829910,1756746651834,-153.104665,0.00013941,2]
[382829912,1756746651843,-151.0,0.00013941,2]
[382829914,1756746651852,-151.0,0.00013941,2]
[382829916,1756746651862,-151.0,0.00013941,2]
[382829918,1756746651873,-151.0,0.00013941,2]
[382829920,1756746651882,-150.0,0.00013942,2]
[382829921,1756746651891,-150.0,0.00013942,2]
[382829923,1756746651900,-150.0,0.00013942,2]
[382829925,1756746651909,-975.0,0.00013942,2]
[382829927,1756746651920,-632.0,0.00013942,2]
[382829929,1756746651933,-2153.0,0.00013942,2]
[382829931,1756746651943,-153.808,0.00013964,2]
[382829933,1756746651952,-300.0,0.00013971,2]
[382829935,1756746651961,-300.0,0.00013971,2]
[382829937,1756746651972,-300.0,0.00013971,2]
[382829939,1756746651982,-300.0,0.00013971,2]
[382829941,1756746651991,-300.0,0.00013971,2]
[382829943,1756746652001,-300.0,0.00013971,2]
[382829945,1756746652010,-300.0,0.00013971,2]
[382829947,1756746652019,-300.0,0.00013971,2]
[382829949,1756746652028,-300.0,0.00013971,2]
[382829951,1756746652037,-300.0,0.00013971,2]
[382829953,1756746652047,-300.0,0.00013971,2]
[382829954,1756746652056,-300.0,0.00013971,2]
[382829956,1756746652065,-300.0,0.00013971,2]
[382829958,1756746652075,-300.0,0.00013971,2]
[382829960,1756746652085,-300.0,0.00013971,2]
[382829962,1756746652095,-600.0,0.00013971,2]
[382829964,1756746652104,-480.0,0.00013972,2]
[382829966,1756746652113,-285.06367061,0.00013972,2]
[382829968,1756746652122,-237.94,0.00013972,2]
[382829970,1756746652132,-480.0,0.00013972,2]
[382829972,1756746652142,-151.0,0.00013972,2]
[382829974,1756746652150,-480.0,0.00013972,2]
[382829976,1756746652160,-545.44,0.00013972,2]
[382829978,1756746652170,-530.2,0.00013972,2]
[382829980,1756746652179,-480.0,0.00013972,2]
[382829982,1756746652188,-480.0,0.00013972,2]
[382829984,1756746652198,-151.0,0.00013972,2]
[382829985,1756746652207,-151.0,0.00013972,2]
[382829987,1756746652217,-480.0,0.00013972,2]
[382829989,1756746652226,-480.0,0.00013972,2]
[382829991,1756746652236,-738.76,0.00013972,2]
[382829993,1756746652246,-480.0,0.00013972,2]
[382829995,1756746652255,-609.56,0.00013972,2]
[382829997,1756746652265,-480.0,0.00013972,2]
[382829999,1756746652275,-480.0,0.00013972,2]
[382830001,1756746652284,-480.0,0.00013972,2]
[382830003,1756746652294,-480.0,0.00013972,2]
[382830005,1756746652303,-605.8,0.00013972,2]
[382830007,1756746652313,-480.0,0.00013972,2]
[382830009,1756746652323,-480.0,0.00013972,2]
[382830011,1756746652332,-480.0,0.00013972,2]
[382830013,1756746652342,-610.9,0.00013972,2]
[382830015,1756746652351,-629.74079167,0.00013972,2]
[382830017,1756746652361,-480.0,0.00013972,2]
[382830019,1756746652370,-317.15,0.00013972,2]
[382830021,1756746652380,-495.8,0.00013972,2]
[382830023,1756746652390,-480.0,0.00013972,2]
[382830025,1756746652399,-171.57,0.00013972,2]
[382830027,1756746652407,-216.889815,0.00013972,2]
[382830029,1756746652417,-174.24335021,0.00013972,2]
[382830303,1756747451668,1407.76415873,0.00012997,2]
[382830370,1756747832354,-1200.0,0.00013394,2]
[382830372,1756747832364,-300.0,0.00013394,2]
[382830374,1756747832373,-300.0,0.00013394,2]
[382830376,1756747832385,-300.0,0.00013394,2]
[382830377,1756747832395,-300.0,0.00013394,2]
[382830378,1756747832404,-1200.0,0.00013395,2]
[382830380,1756747832414,-500.0,0.00013397,2]
[382830382,1756747832423,-500.0,0.00013397,2]
[382830384,1756747832432,-500.0,0.00013397,2]
[382830385,1756747832441,-500.0,0.00013397,2]
[382830386,1756747832451,-500.0,0.00013397,2]
[382830387,1756747832460,-500.0,0.00013397,2]
[382830389,1756747832469,-500.0,0.00013397,2]
[382830391,1756747832479,-500.0,0.00013397,2]
[382830392,1756747832488,-365.47466801,0.00013397,2]
[382830393,1756747832498,-500.0,0.00013397,2]
[382830394,1756747832511,-300.0,0.00013397,2]
[382830395,1756747832521,-54441.98568331,0.00013398,2]
[382830396,1756747832532,-105811.73487753,0.00013398,2]
[382830397,1756747832545,-4348.46331058,0.00013398,2]
[382830407,1756747838260,-467.78343142,0.00013398,2]
[382830409,1756747838272,-2720.00150801,0.00013398,2]
[382830411,1756747838316,-16482.97651732,0.00013398,2]
[382830517,1756747846425,-321.76451899,0.00013398,2]
[382830518,1756747846533,-2027.21533,0.00013398,2]
[382830519,1756747846544,-564.29349995,0.00013398,2]
[382830520,1756747846591,-42938.87879207,0.00013398,2]
[382830525,1756748869731,610.94997837,0.0001261,2]
[382830527,1756748939718,500.0,0.0001297,2]
[382830528,1756748947307,500.0,0.0001297,2]
[382830529,1756748954925,500.0,0.0001297,2]
[382830548,1756749032519,-1200.0,0.00013272,2]
[382830550,1756749032530,-300.0,0.00013272,2]
[382830552,1756749032539,-1200.0,0.00013272,2]
[382830554,1756749032549,-349.35206517,0.00013273,2]
[382830555,1756749032559,-1397.40826068,0.00013273,2]
[382830556,1756749032568,-3144.16858653,0.00013273,2]
[382830557,1756749032578,-5589.63304273,0.00013273,2]
[382830558,1756749032589,-8725.06782763,0.00013273,2]
[382830559,1756749032598,-672.11129841,0.00013273,2]
[382830560,1756749032607,-2688.44519363,0.00013273,2]
[382830561,1756749032618,-6042.95268398,0.00013273,2]
[382830562,1756749032627,-151.0,0.0001329,2]
[382830563,1756749032637,-500.0,0.00013296,2]
[382830564,1756749032647,-500.0,0.00013296,2]
[382830565,1756749032656,-500.0,0.00013296,2]
[382830566,1756749032665,-293.78450284,0.00013296,2]
[382830568,1756749032674,-339.91162689,0.00013296,2]
[382830569,1756749032683,-500.0,0.00013296,2]
[382830571,1756749032693,-500.0,0.00013296,2]
[382830573,1756749032702,-500.0,0.00013296,2]
[382830575,1756749032711,-347.45530897,0.00013296,2]
[382830576,1756749032720,-500.0,0.00013296,2]
[382830578,1756749032730,-500.0,0.00013296,2]
[382830580,1756749032739,-500.0,0.00013296,2]
[382830581,1756749032749,-383.82970147,0.00013296,2]
[382830582,1756749032759,-500.0,0.00013296,2]
[382830584,1756749032768,-500.0,0.00013296,2]
[382830585,1756749032779,-500.0,0.00013296,2]
[382830587,1756749032788,-500.0,0.00013296,2]
[382830589,1756749032797,-500.0,0.00013296,2]
[382830591,1756749032808,-500.0,0.00013296,2]
[382830593,1756749032817,-500.0,0.00013296,2]
[382830594,1756749032827,-500.0,0.00013296,2]
[382830596,1756749032836,-500.0,0.00013296,2]
[382830598,1756749032845,-276.01566588,0.00013297,2]
[382830600,1756749032855,-500.0,0.00013297,2]
[382830601,1756749032864,-500.0,0.00013297,2]
[382830603,1756749032873,-500.0,0.00013297,2]
[382830605,1756749032882,-500.0,0.00013297,2]
[382830606,1756749032892,-500.0,0.00013297,2]
[382830608,1756749032901,-287.42356252,0.00013297,2]
[382830609,1756749032910,-500.0,0.00013297,2]
[382830611,1756749032919,-500.0,0.00013297,2]
[382830612,1756749032929,-500.0,0.00013297,2]
[382830614,1756749032938,-500.0,0.00013297,2]
[382830616,1756749032947,-500.0,0.00013297,2]
[382830617,1756749032957,-500.0,0.00013297,2]
[382830619,1756749032966,-250.0,0.00013297,2]
[382830621,1756749032976,-32141.12077782,0.00013298,2]
[382830625,1756749033015,-1146.21603131,0.00013298,2]
[382830669,1756749038602,-1228.92040992,0.00013298,2]
[382830670,1756749038669,-3266.17962731,0.00013298,2]
[382830671,1756749038683,-4294.17921322,0.00013298,2]
[382830672,1756749038712,-29222.54695821,0.00013298,2]
[382830673,1756749038724,-1950.00000928,0.00013298,2]
[382830674,1756749038735,-11426.67810676,0.00013298,2]
[382830675,1756749038747,-455.18249544,0.00013298,2]
[382830676,1756749038758,-2998.44269599,0.00013298,2]
[382830678,1756749038770,-652.66070144,0.00013298,2]
[382830699,1756749040554,-7918.61214959,0.00013298,2]
[382830701,1756749040566,-7092.75236415,0.00013298,2]
[382830707,1756749040609,-4000.0,0.00013298,2]
[382830709,1756749040621,-594.4003059,0.00013298,2]
[382830714,1756749040664,-70619.8121198,0.00013298,2]
[382830717,1756749040675,-1291.65754788,0.00013298,2]
[382830965,1756749043440,-5639.2999998,0.00013298,2]
[382830966,1756749043496,-18999.77027071,0.00013298,2]
[382830967,1756749043506,-651.28118341,0.00013498,2]
[382830968,1756749043516,-26773.05348017,0.00013598,2]
[382830969,1756749043551,-89358.59653932,0.00013598,2]
[382830970,1756749043561,-500.0,0.00013673,2]
[382830971,1756749043571,-500.73080979,0.00013673,2]
[382830972,1756749043580,-500.0,0.00013673,2]
[382830973,1756749043591,-500.0,0.00013673,2]
[382830974,1756749043600,-480.0,0.00013698,2]
[382830975,1756749043609,-480.0,0.00013698,2]
[382830976,1756749043618,-188.64,0.00013698,2]
[382830977,1756749043627,-480.69313454,0.00013698,2]
[382830978,1756749043636,-480.0,0.00013698,2]
[382830979,1756749043645,-262.4,0.00013698,2]
[382830980,1756749043654,-246.26,0.00013698,2]
[382830981,1756749043663,-480.0,0.00013698,2]
[382830982,1756749043673,-205.39,0.00013698,2]
[382830983,1756749043682,-480.0,0.00013698,2]
[382830984,1756749043692,-280.09,0.00013698,2]
[382830985,1756749043701,-480.0,0.00013698,2]
[382830986,1756749043710,-240.99,0.00013698,2]
[382830987,1756749043719,-480.0,0.00013698,2]
[382830988,1756749043728,-151.0,0.00013698,2]
[382830989,1756749043738,-480.0,0.00013698,2]
[382830990,1756749043747,-321.55354546,0.00013698,2]
[382830991,1756749043760,-158.44645454,0.00013698,2]
[382830992,1756749043769,-278.67,0.00013698,2]
[382830993,1756749043779,-382.84927279,0.00013698,2]
[382831035,1756749046651,-97.15072721,0.00013698,2]
[382831037,1756749046661,-441.51420393,0.00013698,2]
[382831042,1756749046705,-38.48579607,0.00013698,2]
[382831044,1756749046714,-480.0,0.00013698,2]
[382831046,1756749046725,-573.88,0.00013698,2]
[382831048,1756749046734,-480.0,0.00013698,2]
[382831050,1756749046744,-480.0,0.00013698,2]
[382831052,1756749046754,-480.0,0.00013698,2]
[382831054,1756749046763,-480.0,0.00013698,2]
[382831056,1756749046773,-480.0,0.00013698,2]
[382831058,1756749046783,-480.0,0.00013698,2]
[382831059,1756749046792,-690.55,0.00013698,2]
[382831060,1756749046802,-347.53,0.00013698,2]
[382831061,1756749046813,-176.76,0.00013698,2]
[382831062,1756749046823,-480.0,0.00013698,2]
[382831063,1756749046832,-480.0,0.00013698,2]
[382831064,1756749046843,-230.02,0.00013698,2]
[382831065,1756749046852,-480.0,0.00013698,2]
[382831066,1756749046862,-480.0,0.00013698,2]
[382831067,1756749046871,-480.0,0.00013698,2]
[382831068,1756749046881,-480.0,0.00013698,2]
[382831069,1756749046892,-263.60861156,0.00013698,2]